fUST/lending_fUST_20241009
["ID","MTS","AMOUNT","RATE_DAILY","PERIOD"]
[340069018,1728459063410,-500.0,0.00054794,120]
[340069019,1728459063419,-500.0,0.00054794,120]
[340069020,1728459063431,-505.05182421,0.00054794,120]
[340069021,1728459063441,-500.0,0.00054794,120]
[340069022,1728459063450,-500.0,0.00054794,120]
[340069023,1728459063460,-500.0,0.00054794,120]
[340069024,1728459063470,-500.0,0.00054794,120]
[340069025,1728459063479,-494.42058624,0.00054794,120]
[340069026,1728459063488,-500.0,0.00054794,120]
[340069027,1728459063498,-500.0,0.00054794,120]
[340069028,1728459063507,-500.0,0.00054794,120]
[340069029,1728459063517,-501.63275042,0.00054794,120]
[340069030,1728459063526,-500.0,0.00054794,120]
[340069031,1728459063536,-500.0,0.00054794,120]
[340069032,1728459063546,-500.0,0.00054794,120]
[340069033,1728459063555,-500.0,0.00054794,120]
[340069034,1728459063566,-505.48778142,0.00054794,120]
[340069035,1728459063575,-500.0,0.00054794,120]
[340069036,1728459063584,-500.0,0.00054794,120]
[340069037,1728459063593,-502.80206791,0.00054794,120]
[340069038,1728459063602,-500.0,0.00054794,120]
[340069039,1728459063612,-518.27145618,0.00054794,120]
[340069040,1728459063621,-500.0,0.00054794,120]
[340069041,1728459063630,-500.0,0.00054794,120]
[340069042,1728459063640,-500.0,0.00054794,120]
[340069043,1728459063649,-508.31785289,0.00054794,120]
[340069044,1728459063659,-500.0,0.00054794,120]
[340069045,1728459063668,-500.0,0.00054794,120]
[340069046,1728459063678,-500.0,0.00054794,120]
[340069047,1728459063688,-500.0,0.00054794,120]
[340069048,1728459063697,-500.0,0.00054794,120]
[340069049,1728459063707,-503.1052143,0.00054794,120]
[340069050,1728459063717,-509.35782382,0.00054794,120]
[340069051,1728459063726,-503.37859218,0.00054794,120]
[340069052,1728459063736,-500.0,0.00054794,120]
[340069053,1728459063746,-178.01050652,0.00054794,120]
[340069054,1728459063756,-1411.7,0.00054794,120]
[340069055,1728459063766,-500.0,0.00054794,120]
[340069056,1728459063849,-602.70357669,0.00054794,120]
[340069057,1728459063868,-500.0,0.00054794,120]
[340069058,1728459063877,-500.0,0.00054794,120]
[340069059,1728459063887,-500.0,0.00054794,120]
[340069060,1728459063897,-500.0,0.00054794,120]
[340069061,1728459063906,-500.0,0.00054794,120]
[340069062,1728459063916,-500.0,0.00054794,120]
[340069063,1728459063926,-500.0,0.00054794,120]
[340069064,1728459063936,-503.17291142,0.00054794,120]
[340069065,1728459063946,-517.91350242,0.00054794,120]
[340069066,1728459063956,-164.45371009,0.00054794,120]
[340069067,1728459063965,-500.0,0.00054794,120]
[340069068,1728459063975,-526.28489213,0.00054794,120]
[340069069,1728459063985,-514.21042646,0.00054794,120]
[340069070,1728459063996,-506.51957297,0.00054794,120]
[340069071,1728459064006,-500.0,0.00054794,120]
[340069072,1728459064016,-580.52389541,0.00054794,120]
[340069073,1728459064026,-500.0,0.00054794,120]
[340069074,1728459064037,-500.0,0.00054794,120]
[340069075,1728459064046,-462.88978145,0.00054794,120]
[340069076,1728459064055,-500.0,0.00054794,120]
[340069077,1728459064065,-500.0,0.00054794,120]
[340069078,1728459064084,-500.0,0.00054794,120]
[340069079,1728459064094,-500.0,0.00054794,120]
[340069080,1728459064104,-1143.64,0.00054794,120]
[340069081,1728459064114,-500.0,0.00054794,120]
[340069082,1728459064124,-500.0,0.00054794,120]
[340069083,1728459064135,-526.41461959,0.00054794,120]
[340069084,1728459064144,-500.0,0.00054794,120]
[340069085,1728459064155,-500.0,0.00054794,120]
[340069086,1728459064165,-500.0,0.00054794,120]
[340069087,1728459064175,-33358.4,0.00054794,18]
[340069088,1728459064184,-504.71311868,0.00054794,120]
[340069089,1728459064195,-500.0,0.00054794,120]
[340069090,1728459064205,-500.0,0.00054794,120]
[340069091,1728459064215,-500.0,0.00054794,120]
[340069092,1728459064225,-500.0,0.00054794,120]
[340069093,1728459064235,-500.0,0.00054794,120]
[340069094,1728459064244,-500.0,0.00054794,120]
[340069095,1728459064255,-4777.17,0.00054794,21]
[340069096,1728459064264,-563.29074926,0.00054794,120]
[340069097,1728459064274,-519.86321876,0.00054794,120]
[340069098,1728459064285,-500.0,0.00054794,120]
[340069099,1728459064295,-500.0,0.00054794,120]
[340069100,1728459064304,-525.80550294,0.00054794,120]
[340069101,1728459064316,-500.0,0.00054794,120]
[340069102,1728459064326,-500.0,0.00054794,30]
[340069103,1728459064336,-500.0,0.00054794,120]
[340069104,1728459064346,-501.70894674,0.00054794,120]
[340069105,1728459064355,-500.0,0.00054794,120]
[340069106,1728459064365,-375.42559562,0.00054794,120]
[340069107,1728459064374,-599.11,0.00054794,120]
[340069108,1728459064384,-527.51534244,0.00054794,120]
[340069109,1728459064394,-500.0,0.00054794,120]
[340069110,1728459064403,-1654.31,0.00054794,120]
[340069111,1728459064414,-500.0,0.00054794,120]
[340069112,1728459064423,-3371.8,0.00054794,120]
[340069113,1728459064433,-500.0,0.00054794,120]
[340069114,1728459064443,-500.0,0.00054794,120]
[340069115,1728459064454,-825.52,0.00054794,120]
[340069116,1728459064464,-512.9160854,0.00054794,120]
[340069117,1728459064475,-393.94924919,0.00054794,120]
[340069118,1728459064484,-500.0,0.00054794,120]
[340069119,1728459064494,-500.0,0.00054794,120]
[340069120,1728459064504,-500.0,0.00054794,120]
[340069121,1728459064514,-500.0,0.00054794,120]
[340069122,1728459064523,-503.74066318,0.00054794,120]
[340069123,1728459064533,-500.0,0.00054794,120]
[340069124,1728459064542,-500.0,0.00054794,30]
[340069125,1728459064553,-504.37287284,0.00054794,120]
[340069126,1728459064562,-537.56,0.00054794,120]
[340069127,1728459064573,-502.26726354,0.00054794,120]
[340069128,1728459064583,-501.49162946,0.00054794,120]
[340069129,1728459064593,-500.0,0.00054794,120]
[340069130,1728459064602,-500.0,0.00054794,120]
[340069131,1728459064612,-504.10527149,0.00054794,120]
[340069132,1728459064622,-507.04026205,0.00054794,120]
[340069133,1728459064632,-500.0,0.00054794,120]
[340069134,1728459064641,-500.0,0.00054794,120]
[340069135,1728459064651,-500.0,0.00054794,120]
[340069136,1728459064661,-500.0,0.00054794,120]
[340069137,1728459064671,-500.0,0.00054794,120]
[340069138,1728459064680,-504.3585129,0.00054794,120]
[340069139,1728459064691,-500.0,0.00054794,120]
[340069140,1728459064701,-500.0,0.00054794,120]
[340069141,1728459064711,-345.59473596,0.00054794,120]
[340069142,1728459064723,-500.0,0.00054794,120]
[340069143,1728459064733,-500.0,0.00054794,120]
[340069144,1728459064743,-500.0,0.00054794,120]
[340069145,1728459064753,-500.0,0.00054794,7]
[340069146,1728459064763,-507.10529088,0.00054794,120]
[340069147,1728459064774,-209.03866025,0.00054794,120]
[340069148,1728459064784,-500.0,0.00054794,120]
[340069149,1728459064793,-500.0,0.00054794,120]
[340069150,1728459064803,-501.47786504,0.00054794,120]
[340069151,1728459064813,-504.809952,0.00054794,120]
[340069152,1728459064823,-500.0,0.00054794,120]
[340069153,1728459064833,-501.02396197,0.00054794,120]
[340069154,1728459064843,-501.33052264,0.00054794,120]
[340069155,1728459064854,-2641.39,0.00054794,120]
[340069156,1728459064864,-500.0,0.00054794,120]
[340069157,1728459064874,-508.52830484,0.00054794,120]
[340069158,1728459064883,-500.0,0.00054794,120]
[340069159,1728459064893,-500.0,0.00054794,120]
[340069160,1728459064903,-503.56877676,0.00054794,120]
[340069161,1728459064913,-150.48563412,0.00054794,120]
[340069162,1728459064923,-500.0,0.00054794,120]
[340069163,1728459064932,-500.0,0.00054794,120]
[340069164,1728459064942,-500.0,0.00054794,120]
[340069165,1728459064951,-500.0,0.00054794,120]
[340069166,1728459064960,-500.0,0.00054794,120]
[340069167,1728459064970,-500.0,0.00054794,120]
[340069168,1728459064982,-195.4867416,0.00054794,120]
[340069169,1728459064992,-564.93354647,0.00054794,120]
[340069170,1728459065001,-522.31755004,0.00054794,120]
[340069171,1728459065011,-505.74650334,0.00054794,120]
[340069172,1728459065021,-500.0,0.00054794,120]
[340069173,1728459065031,-510.21390079,0.00054794,120]
[340069174,1728459065041,-500.0,0.00054794,120]
[340069175,1728459065051,-500.0,0.00054794,120]
[340069176,1728459065061,-500.0,0.00054794,120]
[340069177,1728459065072,-500.0,0.00054794,120]
[340069178,1728459065082,-623.48555114,0.00054794,120]
[340069179,1728459065091,-546.72785404,0.00054794,120]
[340069180,1728459065101,-500.0,0.00054794,120]
[340069181,1728459065111,-500.0,0.00054794,120]
[340069182,1728459065121,-158.86465011,0.00054794,120]
[340069183,1728459065133,-515.69027444,0.00054794,120]
[340069184,1728459065142,-600.0,0.00054794,3]
[340069185,1728459065152,-500.0,0.00054794,120]
[340069186,1728459065162,-300.0,0.00054794,120]
[340069187,1728459065172,-1000.0,0.00054794,120]
[340069188,1728459065181,-1000.0,0.00054794,5]
[340069189,1728459065192,-500.0,0.00054794,30]
[340069190,1728459065201,-516.75,0.00054794,120]
[340069191,1728459065211,-500.0,0.00054794,120]
[340069192,1728459065222,-579.17,0.00054794,120]
[340069193,1728459065232,-500.0,0.00054794,120]
[340069194,1728459065241,-1000.0,0.00054794,120]
[340069195,1728459065252,-2000.0,0.00054794,120]
[340069196,1728459065261,-500.0,0.00054794,120]
[340069197,1728459065271,-500.0,0.00054794,120]
[340069198,1728459065281,-500.0,0.00054794,120]
[340069199,1728459065292,-500.0,0.00054794,120]
[340069200,1728459065302,-190.09922585,0.00054794,120]
[340069201,1728459065312,-500.0,0.00054794,120]
[340069202,1728459065324,-500.0,0.00054794,2]
[340069203,1728459065334,-500.0,0.00054794,2]
[340069204,1728459065344,-500.0,0.00054794,120]
[340069205,1728459065358,-1500.0,0.00054794,120]
[340069206,1728459065368,-1000.0,0.00054794,120]
[340069207,1728459065379,-163.82525383,0.00054794,120]
[340069208,1728459065458,-500.0,0.00054794,120]
[340069209,1728459065468,-2000.0,0.00055,55]
[340069210,1728459065478,-535.0,0.00055,30]
[340069211,1728459065488,-2008.0,0.00055,38]
[340069212,1728459065499,-3301.09786158,0.0005506,28]
[340069213,1728459065510,-179.773568,0.00055106,30]
[340069214,1728459065520,-152.0,0.00055124,120]
[340069215,1728459065531,-500.0,0.00055232,120]
[340069216,1728459065540,-500.0,0.00055232,120]
[340069217,1728459065549,-500.0,0.00055232,120]
[340069218,1728459065560,-500.0,0.00055232,120]
[340069219,1728459065571,-500.0,0.00055232,120]
[340069220,1728459065580,-500.0,0.00055232,120]
[340069221,1728459065591,-479.82381888,0.00055232,120]
[340069222,1728459065600,-500.0,0.00055232,90]
[340069223,1728459065610,-500.0,0.00055232,120]
[340069224,1728459065619,-500.0,0.00055232,120]
[340069225,1728459065629,-500.0,0.00055232,120]
[340069226,1728459065638,-644.81093267,0.00055232,120]
[340069227,1728459065648,-500.0,0.00055232,120]
[340069228,1728459065657,-500.0,0.00055232,120]
[340069229,1728459065667,-500.0,0.00055232,120]
[340069230,1728459065677,-500.0,0.00055232,120]
[340069231,1728459065686,-500.0,0.00055232,120]
[340069232,1728459065696,-500.0,0.00055232,120]
[340069233,1728459065705,-677.71,0.00055232,120]
[340069234,1728459065714,-500.0,0.00055232,120]
[340069235,1728459065724,-500.0,0.00055232,120]
[340069236,1728459065733,-500.0,0.00055232,120]
[340069237,1728459065743,-500.0,0.00055232,120]
[340069238,1728459065752,-500.0,0.00055232,120]
[340069239,1728459065761,-500.0,0.00055232,120]
[340069240,1728459065771,-500.0,0.00055232,120]
[340069241,1728459065781,-500.0,0.00055232,120]
[340069242,1728459065791,-503.46928096,0.00055232,120]
[340069243,1728459065801,-506.77753834,0.00055232,120]
[340069244,1728459065811,-503.87365931,0.00055232,120]
[340069245,1728459065821,-500.0,0.00055232,120]
[340069246,1728459065831,-500.0,0.00055232,120]
[340069247,1728459065840,-500.0,0.00055232,120]
[340069248,1728459065851,-500.0,0.00055232,120]
[340069249,1728459065860,-500.0,0.00055232,120]
[340069250,1728459065869,-500.0,0.00055232,120]
[340069251,1728459065879,-500.0,0.00055232,120]
[340069252,1728459065888,-506.95526104,0.00055232,120]
[340069253,1728459065898,-503.67208207,0.00055232,120]
[340069254,1728459065908,-504.51841215,0.00055232,120]
[340069255,1728459065917,-506.82165459,0.00055232,120]
[340069256,1728459065926,-503.53184036,0.00055232,120]
[340069257,1728459065937,-500.0,0.00055232,120]
[340069258,1728459065946,-323.37715097,0.00055232,120]
[340069259,1728459065956,-502.74302169,0.00055232,120]
[340069260,1728459065965,-500.0,0.00055232,120]
[340069261,1728459065975,-503.18855847,0.00055232,120]
[340069262,1728459065984,-500.0,0.00055232,120]
[340069263,1728459065993,-500.0,0.00055232,120]
[340069264,1728459066003,-504.42733641,0.00055232,120]
[340069265,1728459066012,-505.375904,0.00055232,120]
[340069266,1728459066022,-500.0,0.00055232,120]
[340069267,1728459066032,-504.85683479,0.00055232,120]
[340069268,1728459066042,-500.0,0.00055232,120]
[340069269,1728459066052,-500.0,0.00055232,120]
[340069270,1728459066062,-506.80691341,0.00055232,120]
[340069271,1728459066073,-500.0,0.00055232,120]
[340069272,1728459066083,-500.0,0.00055232,120]
[340069273,1728459066093,-500.0,0.00055232,120]
[340069274,1728459066102,-503.24013392,0.00055232,120]
[340069275,1728459066111,-500.0,0.00055232,120]
[340069276,1728459066121,-500.0,0.00055232,120]
[340069277,1728459066131,-1318.27,0.00055232,120]
[340069278,1728459066141,-500.0,0.00055232,120]
[340069279,1728459066150,-500.0,0.00055232,120]
[340069280,1728459066159,-500.0,0.00055232,120]
[340069281,1728459066169,-500.0,0.00055232,120]
[340069282,1728459066178,-500.0,0.00055232,120]
[340069283,1728459066187,-505.20938056,0.00055232,120]
[340069284,1728459066196,-510.01284526,0.00055232,120]
[340069285,1728459066206,-500.0,0.00055232,120]
[340069286,1728459066215,-500.0,0.00055232,120]
[340069287,1728459066224,-500.0,0.00055232,120]
[340069288,1728459066235,-500.0,0.00055232,120]
[340069289,1728459066244,-500.0,0.00055232,120]
[340069290,1728459066254,-503.53611676,0.00055232,120]
[340069291,1728459066263,-500.0,0.00055232,120]
[340069292,1728459066272,-500.0,0.00055232,120]
[340069293,1728459066281,-500.0,0.00055232,120]
[340069294,1728459066290,-500.0,0.00055232,120]
[340069295,1728459066299,-587.57915727,0.00055232,7]
[340069296,1728459066309,-500.0,0.00055232,120]
[340069297,1728459066320,-214.92537031,0.00055232,120]
[340069298,1728459066329,-500.0,0.00055232,120]
[340069299,1728459066338,-327.76759505,0.00055232,120]
[340069300,1728459066348,-500.0,0.00055232,120]
[340069301,1728459066357,-500.0,0.00055232,120]
[340069302,1728459066366,-500.0,0.00055232,120]
[340069303,1728459066376,-500.0,0.00055232,120]
[340069304,1728459066386,-500.0,0.00055232,120]
[340069305,1728459066395,-500.0,0.00055232,120]
[340069306,1728459066405,-503.67644725,0.00055232,120]
[340069307,1728459066414,-500.0,0.00055232,120]
[340069308,1728459066423,-503.62014318,0.00055232,120]
[340069309,1728459066433,-500.0,0.00055232,120]
[340069310,1728459066442,-500.0,0.00055232,120]
[340069311,1728459066452,-507.19894317,0.00055232,120]
[340069312,1728459066461,-505.45518578,0.00055232,120]
[340069313,1728459066470,-508.90845451,0.00055232,120]
[340069314,1728459066480,-507.40046873,0.00055232,120]
[340069315,1728459066489,-500.0,0.00055232,120]
[340069316,1728459066498,-525.60653639,0.00055232,120]
[340069317,1728459066508,-500.0,0.00055232,120]
[340069318,1728459066517,-500.0,0.00055232,120]
[340069319,1728459066526,-500.0,0.00055232,120]
[340069320,1728459066536,-505.35487535,0.00055232,120]
[340069321,1728459066545,-500.0,0.00055232,120]
[340069322,1728459066555,-500.0,0.00055232,120]
[340069323,1728459066564,-500.0,0.00055232,120]
[340069324,1728459066573,-500.0,0.00055232,120]
[340069325,1728459066582,-500.0,0.00055232,120]
[340069326,1728459066592,-509.98039462,0.00055232,120]
[340069327,1728459066601,-500.0,0.00055232,120]
[340069328,1728459066610,-1667.02,0.00055232,120]
[340069329,1728459066619,-500.0,0.00055232,120]
[340069330,1728459066629,-500.0,0.00055232,120]
[340069331,1728459066638,-500.0,0.00055232,120]
[340069332,1728459066647,-1163.83,0.00055232,120]
[340069333,1728459066659,-503.33918651,0.00055232,120]
[340069334,1728459066669,-500.0,0.00055232,120]
[340069335,1728459066680,-505.89314725,0.00055232,120]
[340069336,1728459066691,-500.0,0.00055232,120]
[340069337,1728459066701,-500.0,0.00055232,120]
[340069338,1728459066712,-500.0,0.00055232,120]
[340069339,1728459066723,-500.0,0.00055232,120]
[340069340,1728459066732,-500.0,0.00055232,120]
[340069341,1728459066742,-500.0,0.00055232,120]
[340069342,1728459066751,-500.0,0.00055232,120]
[340069343,1728459066760,-513.84092381,0.00055232,120]
[340069344,1728459066769,-500.0,0.00055232,120]
[340069345,1728459066779,-500.0,0.00055232,120]
[340069346,1728459066788,-500.0,0.00055232,120]
[340069347,1728459066797,-500.0,0.00055232,120]
[340069348,1728459066874,-500.0,0.00055232,120]
[340069349,1728459066884,-505.36192971,0.00055232,120]
[340069350,1728459066893,-500.0,0.00055232,120]
[340069351,1728459066902,-500.0,0.00055232,120]
[340069352,1728459066912,-439.26805399,0.00055232,120]
[340069353,1728459066921,-500.0,0.00055232,120]
[340069354,1728459066930,-500.0,0.00055232,120]
[340069355,1728459066939,-500.0,0.00055232,120]
[340069356,1728459066949,-500.0,0.00055232,120]
[340069357,1728459066958,-500.0,0.00055232,120]
[340069358,1728459066968,-500.0,0.00055232,120]
[340069359,1728459066977,-505.75035724,0.00055232,120]
[340069360,1728459066986,-500.0,0.00055232,120]
[340069361,1728459066996,-500.0,0.00055232,120]
[340069362,1728459067006,-508.94173805,0.00055232,120]
[340069363,1728459067017,-500.0,0.00055232,120]
[340069364,1728459067026,-237.53714792,0.00055232,120]
[340069365,1728459067036,-500.0,0.00055232,120]
[340069366,1728459067046,-506.29355171,0.00055232,120]
[340069367,1728459067055,-501.58223367,0.00055232,120]
[340069368,1728459067066,-500.0,0.00055232,120]
[340069369,1728459067075,-500.0,0.00055232,120]
[340069370,1728459067084,-511.21321224,0.00055232,120]
[340069371,1728459067094,-500.0,0.00055232,120]
[340069372,1728459067103,-500.0,0.00055232,120]
[340069373,1728459067112,-509.12717204,0.00055232,120]
[340069374,1728459067122,-509.99702496,0.00055232,120]
[340069375,1728459067131,-506.25111905,0.00055232,120]
[340069376,1728459067141,-500.0,0.00055232,30]
[340069377,1728459067150,-520.23920571,0.00055232,120]
[340069378,1728459067159,-500.0,0.00055232,120]
[340069379,1728459067169,-201.28133724,0.00055232,120]
[340069380,1728459067178,-504.14069136,0.00055232,120]
[340069381,1728459067187,-500.0,0.00055232,120]
[340069382,1728459067197,-500.0,0.00055232,120]
[340069383,1728459067206,-500.0,0.00055232,120]
[340069384,1728459067216,-512.45766276,0.00055232,120]
[340069385,1728459067224,-500.0,0.00055232,120]
[340069386,1728459067234,-500.0,0.00055232,120]
[340069387,1728459067243,-500.0,0.00055232,120]
[340069388,1728459067253,-500.0,0.00055232,120]
[340069389,1728459067263,-500.0,0.00055232,120]
[340069390,1728459067272,-504.36708678,0.00055232,120]
[340069391,1728459067281,-500.0,0.00055232,120]
[340069392,1728459067291,-500.0,0.00055232,120]
[340069393,1728459067300,-500.0,0.00055232,120]
[340069394,1728459067310,-190.69760383,0.00055232,120]
[340069395,1728459067321,-1071.26,0.00055232,120]
[340069396,1728459067336,-500.0,0.00055232,120]
[340069397,1728459067346,-500.0,0.00055232,120]
[340069398,1728459067358,-500.0,0.00055232,120]
[340069399,1728459067367,-500.0,0.00055232,120]
[340069400,1728459067376,-500.0,0.00055232,120]
[340069401,1728459067386,-500.0,0.00055232,10]
[340069402,1728459067395,-504.74393175,0.00055232,120]
[340069403,1728459067404,-500.0,0.00055232,120]
[340069404,1728459067414,-500.0,0.00055232,120]
[340069405,1728459067423,-509.79083911,0.00055232,120]
[340069406,1728459067434,-500.0,0.00055232,120]
[340069407,1728459067443,-500.0,0.00055232,120]
[340069408,1728459067453,-505.0309734,0.00055232,120]
[340069409,1728459067462,-511.5808314,0.00055232,120]
[340069410,1728459067471,-500.0,0.00055232,120]
[340069411,1728459067480,-500.0,0.00055232,120]
[340069412,1728459067490,-500.0,0.00055232,120]
[340069413,1728459067499,-550.51821496,0.00055232,120]
[340069414,1728459067508,-500.0,0.00055232,120]
[340069415,1728459067518,-494.98905823,0.00055232,120]
[340069416,1728459067527,-500.0,0.00055232,120]
[340069417,1728459067537,-507.1957036,0.00055232,120]
[340069418,1728459067546,-505.63630213,0.00055232,120]
[340069419,1728459067556,-500.0,0.00055232,120]
[340069420,1728459067569,-500.0,0.00055232,120]
[340069421,1728459067579,-500.0,0.00055232,120]
[340069422,1728459067588,-500.0,0.00055232,120]
[340069423,1728459067599,-1191.19,0.00055232,120]
[340069424,1728459067617,-265.07493825,0.00055232,120]
[340069425,1728459067636,-500.0,0.00055232,120]
[340069426,1728459067645,-504.58902705,0.00055232,120]
[340069427,1728459067655,-500.0,0.00055232,120]
[340069428,1728459067665,-500.0,0.00055232,120]
[340069429,1728459067674,-500.0,0.00055232,120]
[340069430,1728459067684,-500.0,0.00055232,120]
[340069431,1728459067693,-500.0,0.00055232,120]
[340069432,1728459067702,-500.0,0.00055232,120]
[340069433,1728459067711,-500.0,0.00055232,120]
[340069434,1728459067721,-500.0,0.00055232,120]
[340069435,1728459067730,-500.0,0.00055232,120]
[340069436,1728459067739,-500.0,0.00055232,120]
[340069437,1728459067748,-500.0,0.00055232,120]
[340069438,1728459067758,-500.0,0.00055232,120]
[340069439,1728459067767,-500.0,0.00055232,120]
[340069440,1728459067777,-500.0,0.00055232,120]
[340069441,1728459067786,-500.0,0.00055232,120]
[340069442,1728459067795,-500.0,0.00055232,120]
[340069443,1728459067804,-500.0,0.00055232,120]
[340069444,1728459067814,-500.0,0.00055232,2]
[340069445,1728459067823,-500.0,0.00055232,120]
[340069446,1728459067832,-500.0,0.00055232,120]
[340069447,1728459067842,-503.81748068,0.00055232,120]
[340069448,1728459067852,-500.0,0.00055232,120]
[340069449,1728459067861,-500.0,0.00055232,120]
[340069450,1728459067870,-500.0,0.00055232,120]
[340069451,1728459067879,-502.20938282,0.00055232,120]
[340069452,1728459067888,-500.0,0.00055232,120]
[340069453,1728459067897,-751.07,0.00055232,120]
[340069454,1728459067906,-500.0,0.00055232,120]
[340069455,1728459067915,-500.0,0.00055232,120]
[340069456,1728459067925,-501.91519659,0.00055232,120]
[340069457,1728459067935,-503.34425518,0.00055232,120]
[340069458,1728459067944,-500.0,0.00055232,120]
[340069459,1728459067953,-500.0,0.00055232,120]
[340069460,1728459067963,-500.0,0.00055232,120]
[340069461,1728459067972,-500.0,0.00055232,120]
[340069462,1728459067981,-523.05,0.00055232,120]
[340069463,1728459067991,-500.0,0.00055232,120]
[340069464,1728459068001,-500.0,0.00055232,120]
[340069465,1728459068012,-565.99958708,0.00055232,120]
[340069466,1728459068021,-500.0,0.00055232,120]
[340069467,1728459068031,-500.0,0.00055232,120]
[340069468,1728459068040,-500.0,0.00055232,120]
[340069469,1728459068050,-500.0,0.00055232,60]
[340069470,1728459068059,-500.0,0.00055232,120]
[340069471,1728459068069,-627.85,0.00055232,2]
[340069472,1728459068079,-518.00061111,0.00055232,120]
[340069473,1728459068088,-500.0,0.00055232,120]
[340069474,1728459068097,-682.88,0.00055232,120]
[340069475,1728459068107,-500.0,0.00055232,2]
[340069476,1728459068116,-500.0,0.00055232,120]
[340069477,1728459068190,-500.0,0.00055232,120]
[340069478,1728459068200,-500.0,0.00055232,120]
[340069479,1728459068209,-500.0,0.00055232,10]
[340069480,1728459068219,-500.0,0.00055232,120]
[340069481,1728459068228,-500.0,0.00055232,120]
[340069482,1728459068238,-500.0,0.00055232,120]
[340069483,1728459068247,-500.0,0.00055232,120]
[340069484,1728459068256,-500.0,0.00055232,120]
[340069485,1728459068265,-500.0,0.00055232,120]
[340069486,1728459068275,-500.0,0.00055232,120]
[340069487,1728459068285,-500.0,0.00055232,120]
[340069488,1728459068294,-500.0,0.00055232,120]
[340069489,1728459068303,-503.64914309,0.00055232,120]
[340069490,1728459068312,-500.0,0.00055232,120]
[340069491,1728459068322,-500.0,0.00055232,120]
[340069492,1728459068331,-547.6946506,0.00055232,120]
[340069493,1728459068340,-500.0,0.00055232,120]
[340069494,1728459068350,-500.0,0.00055232,120]
[340069495,1728459068359,-500.0,0.00055232,120]
[340069496,1728459068370,-500.0,0.00055232,120]
[340069497,1728459068379,-508.8645715,0.00055232,120]
[340069498,1728459068389,-504.39664752,0.00055232,120]
[340069499,1728459068398,-500.0,0.00055232,120]
[340069500,1728459068407,-500.0,0.00055232,120]
[340069501,1728459068416,-500.0,0.00055232,120]
[340069502,1728459068426,-500.0,0.00055232,120]
[340069503,1728459068435,-500.0,0.00055232,120]
[340069504,1728459068444,-501.62263283,0.00055232,120]
[340069505,1728459068453,-582.97771493,0.00055232,120]
[340069506,1728459068462,-500.0,0.00055232,120]
[340069507,1728459068471,-505.3787921,0.00055232,120]
[340069508,1728459068480,-500.0,0.00055232,120]
[340069509,1728459068490,-500.0,0.00055232,120]
[340069510,1728459068499,-500.0,0.00055232,120]
[340069511,1728459068508,-385.96774753,0.00055232,120]
[340069512,1728459068517,-503.74284997,0.00055232,120]
[340069513,1728459068526,-500.0,0.00055232,120]
[340069514,1728459068536,-503.86726686,0.00055232,120]
[340069515,1728459068546,-500.0,0.00055232,120]
[340069516,1728459068555,-500.0,0.00055232,120]
[340069517,1728459068566,-500.0,0.00055232,120]